fUSD/lending_fUSD_20260616
["ID","MTS","AMOUNT","RATE_DAILY","PERIOD"]
[425212812,1781593668000,151.0,0.00030137,120]
[425212824,1781593832000,-2796.244,9.055e-05,2]
[425212816,1781593832000,-180.28,8.701e-05,2]
[425212817,1781593832000,-150.0,8.751e-05,2]
[425212818,1781593832000,-70.27,8.8e-05,3]
[425212820,1781593832000,-400.0,8.9e-05,3]
[425212819,1781593832000,-129.73,8.8e-05,3]
[425212821,1781593832000,-600.0,9e-05,3]
[425212822,1781593832000,-500.0,9.054e-05,2]
[425212823,1781593832000,-251.9026809,9.054e-05,2]
[425212828,1781593832000,-0.31706585,9.067e-05,2]
[425212826,1781593832000,-160.0,9.061e-05,2]
[425212835,1781593832000,-762.36783337,9.14e-05,2]
[425212825,1781593832000,-167.681,9.055e-05,2]
[425212834,1781593832000,-900.0,9.14e-05,2]
[425212832,1781593832000,-150.0,9.139e-05,2]
[425212831,1781593832000,-630.64599627,9.139e-05,2]
[425212830,1781593832000,-442.36142522,9.139e-05,2]
[425212829,1781593832000,-123.05832746,9.067e-05,2]
[425212827,1781593832000,-92.75908824,9.067e-05,2]
[425212833,1781593832000,-4921.58054711,9.14e-05,2]
[425212885,1781593837000,-17336.04630974,9.14e-05,2]
[425212882,1781593837000,-2027.00906244,9.14e-05,2]
[425212889,1781593839000,-160.0,9.059e-05,2]
[425212890,1781593839000,-1451.73657596,9.14e-05,2]
[425212893,1781593840000,-1113.09781505,9.14e-05,2]
[425212892,1781593840000,-834.08597618,9.14e-05,2]
[425212894,1781593840000,-3492.40148032,9.14e-05,2]
[425212891,1781593840000,-455.93069983,9.14e-05,2]
[425212896,1781593840000,-8276.26486643,9.14e-05,2]
[425212897,1781593840000,-9067.83604949,9.14e-05,2]
[425212899,1781593840000,-2333.0,9.14e-05,2]
[425212898,1781593840000,-765.44534152,9.14e-05,2]
[425212895,1781593840000,-49558.70468547,9.14e-05,2]
[425212905,1781593843000,-934.0,9.14e-05,2]
[425212904,1781593843000,-885.4,9.14e-05,2]
[425212910,1781593848000,-839.302312,9.14e-05,2]
[425212909,1781593848000,-1429.70079168,9.14e-05,2]
[425212908,1781593848000,-4843.86,9.14e-05,2]
[425212915,1781594126000,202.2207533,0.0003011,120]
[425212916,1781594186000,191.30083262,0.0003011,120]
[425212917,1781594248000,155.99175847,0.0003011,120]
[425212923,1781594666000,250.29251348,0.0003011,120]
[425212924,1781594669000,196.16718111,0.00029893,120]
[425212925,1781594670000,196.16718111,0.00029597,120]
[425212926,1781594726000,236.77671776,0.0003011,120]
[425212927,1781594786000,223.990775,0.0003011,120]
[425212928,1781594846000,211.89527315,0.0003011,120]
[425212929,1781594906000,200.4529284,0.0003011,120]
[425212930,1781594965000,188.97844599,0.00029919,120]
[425212931,1781594966000,189.62847026,0.0003011,120]
[425212950,1781595031000,-1600.0,7.889e-05,2]
[425212951,1781595031000,-1000.0,7.897e-05,2]
[425212952,1781595031000,-445.64,7.921e-05,2]
[425212962,1781595031000,-150.0,8.688e-05,2]
[425212953,1781595031000,-313.58,7.999e-05,2]
[425212954,1781595031000,-150.0,8.053e-05,2]
[425212959,1781595031000,-160.0,8.334e-05,2]
[425212957,1781595031000,-161.49,8.305e-05,2]
[425212964,1781595031000,-339.39179236,8.74e-05,2]
[425212956,1781595031000,-250.0,8.231e-05,2]
[425212958,1781595031000,-300.0,8.328e-05,2]
[425212961,1781595031000,-216.13448155,8.65e-05,2]
[425212960,1781595031000,-161.49,8.647e-05,2]
[425212963,1781595031000,-160.60820764,8.74e-05,2]
[425212965,1781595031000,-5391.23,8.752e-05,2]
[425212966,1781595031000,-173.79,8.786e-05,2]
[425212967,1781595031000,-1890.24312821,8.799e-05,2]
[425212955,1781595031000,-200.0,8.108e-05,2]
[425212971,1781595032000,-500.0,8.799e-05,2]
[425212973,1781595032000,-250.0,8.799e-05,2]
[425212969,1781595032000,-300.0,8.799e-05,2]
[425212972,1781595032000,-528.26272513,8.799e-05,2]
[425212970,1781595032000,-300.0,8.799e-05,2]
[425212975,1781595032000,-1700.0,8.8e-05,3]
[425212974,1781595032000,-279.23271046,8.799e-05,2]
[425212968,1781595032000,-300.0,8.799e-05,2]
[425212976,1781595032000,-470.85,8.818e-05,2]
[425212994,1781595032000,-21990.2970597,8.94e-05,2]
[425212990,1781595032000,-193.51482873,8.918e-05,2]
[425212993,1781595032000,-300.0,8.918e-05,2]
[425212992,1781595032000,-250.0,8.918e-05,2]
[425212984,1781595032000,-2501.444,8.9e-05,2]
[425212978,1781595032000,-2484.6221,8.84e-05,2]
[425212982,1781595032000,-150.0,8.899e-05,2]
[425212988,1781595032000,-3500.0,8.9e-05,3]
[425212986,1781595032000,-204.384,8.9e-05,2]
[425212981,1781595032000,-1600.0,8.875e-05,2]
[425213008,1781595040000,-271.552087,9.04e-05,2]
[425213004,1781595040000,-11303.9592403,8.94e-05,2]
[425213006,1781595040000,-5200.0,9e-05,3]
[425213007,1781595040000,-519781.15407717,9.04e-05,2]
[425213003,1781595040000,-47.63198016,8.751e-05,2]
[425213005,1781595040000,-161.49,8.99e-05,2]
[425213001,1781595040000,-234.90899765,8.751e-05,2]
[425213002,1781595040000,-158.28840296,8.751e-05,2]
[425213000,1781595040000,-74.744,8.751e-05,2]
[425212999,1781595040000,-500.0,8.751e-05,2]
[425213019,1781595045000,-431.69864103,9.04e-05,2]
[425213021,1781595045000,-21721.76427031,9.04e-05,2]
[425213020,1781595045000,-2503.20420611,9.04e-05,2]
[425213018,1781595045000,-1057.83701526,9.04e-05,2]
[425213022,1781595046000,-1416.29592245,9.04e-05,2]
[425213179,1781595047000,-379.26359085,9.04e-05,2]
[425213129,1781595047000,-269.07,9.04e-05,2]
[425213178,1781595047000,-2213.75770662,9.04e-05,2]
[425213185,1781595051000,365.77951182,0.0003,120]
[425213186,1781595129000,155.0,0.00030137,120]
[425213187,1781595155000,475.82,0.00030082,120]
[425213190,1781595433000,243.50983911,0.0003011,120]
[425213191,1781595437000,1337.0,9.073e-05,5]
[425213192,1781595440000,601.87947457,0.0003013,120]
[425213193,1781595488000,1598.39600456,0.0003011,120]
[425213194,1781595489000,706.61,0.00029534,120]
[425213195,1781595491000,1187.9,0.00030137,120]
[425213196,1781595495000,174.76625181,0.0003013,120]
[425213197,1781595543000,2819.79621728,0.0003013,120]
[425213198,1781595544000,763.0,0.000301,120]
[425213199,1781595547000,1512.08262032,0.0003011,120]
[425213200,1781595550000,2000.0,0.00030077,120]
[425213201,1781595550000,2000.0,0.00030077,120]
[425213203,1781595550000,2000.0,0.00030077,120]
[425213204,1781595550000,2000.0,0.00030077,120]
[425213202,1781595550000,2000.0,0.00030077,120]
[425213205,1781595551000,2000.0,0.00030077,120]
[425213206,1781595551000,2000.0,0.00030077,120]
[425213207,1781595551000,2000.0,0.00030077,120]
[425213209,1781595551000,2000.0,0.00030077,120]
[425213210,1781595551000,2000.0,0.00030077,120]
[425213211,1781595551000,3000.0,0.00030077,120]
[425213212,1781595551000,2000.0,0.00030077,120]
[425213214,1781595551000,2000.0,0.00030077,120]
[425213213,1781595551000,3000.0,0.00030077,120]
[425213208,1781595551000,2000.0,0.00030077,120]
[425213215,1781595551000,3000.0,0.00030077,120]
[425213216,1781595551000,2000.0,0.00030077,120]
[425213223,1781595551000,2000.0,0.00030077,120]
[425213222,1781595551000,2759.65,0.00030077,120]
[425213220,1781595551000,3000.0,0.00030077,120]
[425213224,1781595551000,2000.0,0.00030077,120]
[425213218,1781595551000,2000.0,0.00030077,120]
[425213219,1781595551000,3000.0,0.00030077,120]
[425213217,1781595551000,3000.0,0.00030077,120]
[425213221,1781595551000,2000.0,0.00030077,120]
[425213231,1781595552000,2000.0,0.00030077,120]
[425213225,1781595552000,3000.0,0.000301,120]
[425213227,1781595552000,3000.0,0.000301,120]
[425213229,1781595552000,2649.85,0.000301,120]
[425213228,1781595552000,2000.0,0.00030077,120]
[425213230,1781595552000,2000.0,0.00030077,120]
[425213234,1781595552000,497.37,0.00030077,120]
[425213238,1781595552000,2000.0,0.000301,120]
[425213233,1781595552000,2000.0,0.00030077,120]
[425213235,1781595552000,2000.0,0.000301,120]
[425213236,1781595552000,2000.0,0.000301,120]
[425213237,1781595552000,2000.0,0.000301,120]
[425213239,1781595552000,2000.0,0.000301,120]
[425213240,1781595552000,2000.0,0.000301,120]
[425213232,1781595552000,2000.0,0.00030077,120]
[425213226,1781595552000,2000.0,0.00030077,120]
[425213242,1781595554000,2000.0,0.000301,120]
[425213241,1781595554000,2000.0,0.000301,120]
[425213243,1781595555000,2000.0,0.000301,120]
[425213245,1781595555000,207.24,0.000301,120]
[425213244,1781595555000,2000.0,0.000301,120]
[425213247,1781595578000,434.75333888,0.00027397,120]
[425213246,1781595578000,622.16,0.00029863,120]
[425213248,1781595579000,1430.43015882,0.0003011,120]
[425213249,1781595627000,1353.18693024,0.0003011,120]
[425213250,1781595669000,-187.84,7.997e-05,2]
[425213251,1781595670000,60000.0,0.00030136,120]
[425213252,1781595675000,1910.0,0.0003,120]
[425213253,1781595686000,1095.13492548,0.0003011,120]
[425213254,1781595689000,2000.0,0.00030077,120]
[425213256,1781595689000,2000.0,0.00030077,120]
[425213255,1781595689000,2000.0,0.00030077,120]
[425213258,1781595690000,2000.0,0.00030077,120]
[425213257,1781595690000,2000.0,0.00030077,120]
[425213259,1781595692000,2000.0,0.00030077,120]
[425213266,1781595715000,-150.0,8.03e-05,2]
[425213260,1781595715000,2000.0,0.00030077,120]
[425213261,1781595715000,2000.0,0.00030077,120]
[425213263,1781595715000,2000.0,0.00030077,120]
[425213262,1781595715000,2000.0,0.00030077,120]
[425213264,1781595715000,2000.0,0.00030077,120]
[425213267,1781595715000,2000.0,0.00030077,120]
[425213270,1781595715000,2000.0,0.00030077,120]
[425213268,1781595715000,2000.0,0.00030077,120]
[425213269,1781595715000,2000.0,0.00030077,120]
[425213272,1781595715000,2000.0,0.00030077,120]
[425213273,1781595715000,2000.0,0.00030077,120]
[425213274,1781595715000,2000.0,0.00030077,120]
[425213265,1781595715000,2000.0,0.00030077,120]
[425213271,1781595715000,2000.0,0.00030077,120]
[425213275,1781595716000,1594.66,0.00030077,120]
[425213282,1781595716000,2000.0,0.00030093,120]
[425213281,1781595716000,2000.0,0.00030093,120]
[425213280,1781595716000,2000.0,0.00030093,120]
[425213279,1781595716000,2000.0,0.00030093,120]
[425213278,1781595716000,2000.0,0.00030093,120]
[425213277,1781595716000,2000.0,0.00030093,120]
[425213276,1781595716000,2000.0,0.00030093,120]
[425213284,1781595717000,1331.11,0.00030093,120]
[425213283,1781595717000,2000.0,0.00030093,120]
[425213285,1781595758000,-3132.1,8.062e-05,2]
[425213286,1781595760000,602.32420902,0.0003011,120]
[425213287,1781595799000,566.929101,0.00029231,120]
[425213289,1781595806000,-250.0,8.085e-05,2]
[425213288,1781595806000,331.27831496,0.0003011,120]
[425213291,1781595828000,258.0,8.011e-05,2]
[425213293,1781595866000,182.20307323,0.0003011,120]
[425213294,1781595868000,189.93694401,0.00029694,120]
[425213295,1781595883000,534.5218446,0.00030136,120]
[425213296,1781595889000,-742.0,8.011e-05,2]
[425213297,1781595901000,362.97,0.0003013,120]
[425213298,1781595909000,9043.21987597,8.219e-05,10]
[425213299,1781595916000,360.0,0.0003013,120]
[425213300,1781595922000,655.43,0.00030082,120]
[425213303,1781595936000,-4099.98,8.219e-05,2]
[425213301,1781595936000,-250.0,8.184e-05,2]
[425213302,1781595936000,-150.0,8.202e-05,2]
[425213306,1781595936000,-165.65,8.3e-05,2]
[425213305,1781595936000,-216.13448155,8.238e-05,2]
[425213307,1781595936000,-216.75709835,8.319e-05,2]
[425213309,1781595936000,-2955.26525787,8.32e-05,2]
[425213308,1781595936000,-508.43386223,8.319e-05,2]
[425213304,1781595936000,-160.0,8.223e-05,2]
[425213311,1781595972000,-500.0,7.981e-05,2]
[425213313,1781595986000,4017.79,0.00030137,120]
[425213314,1781596025000,-500.0,8.319e-05,2]
[425213315,1781596027000,1609.0,9.073e-05,5]
[425213316,1781596078000,-150.0,8.07e-05,2]
[425213317,1781596083000,227.0,0.00029987,120]
[425213318,1781596133000,-150.0,7.828e-05,2]
[425213319,1781596228000,1000.0,0.0003,120]
[425213331,1781596232000,-300.0,8.599e-05,2]
[425213322,1781596232000,-200.0,8.028e-05,2]
[425213321,1781596232000,-158.62,8.028e-05,2]
[425213323,1781596232000,-300.0,8.277e-05,2]
[425213324,1781596232000,-300.0,8.277e-05,2]
[425213327,1781596232000,-2719.35,8.32e-05,2]
[425213325,1781596232000,-300.0,8.277e-05,2]
[425213329,1781596232000,-161.49,8.355e-05,2]
[425213326,1781596232000,-500.00000001,8.319e-05,2]
[425213334,1781596232000,-612.6833,8.718e-05,2]
[425213333,1781596232000,-3500.0,8.7e-05,3]
[425213328,1781596232000,-326.05752722,8.321e-05,2]
[425213335,1781596232000,-446352.41766558,8.718e-05,2]
[425213332,1781596232000,-1700.0,8.6e-05,3]
[425213330,1781596232000,-326.05752721,8.581e-05,2]
[425213371,1781596240000,-536344.23529763,8.718e-05,2]
[425213370,1781596240000,-150.0,8.298e-05,2]
[425213387,1781596243000,-0.22112312,8.718e-05,2]
[425213386,1781596243000,-772.33503905,8.718e-05,2]
[425213385,1781596243000,-260.35224149,8.718e-05,2]
[425213384,1781596243000,-545.98827082,8.718e-05,2]
[425213383,1781596243000,-486.51877204,8.718e-05,2]
[425213403,1781596246000,-2596.37619298,8.718e-05,2]
[425213404,1781596372000,-458.192,9.604e-05,7]
[425213405,1781596389000,1000.0,0.0003,120]
[425213406,1781596412000,1650.0,0.0003,120]
[425213407,1781596434000,166.82634221,0.00027397,120]
[425213408,1781596447000,176.03920659,0.0002,120]
[425213410,1781596482000,1175.472122,0.0003,120]
[425213411,1781596485000,338.89673986,0.0003,120]
[425213415,1781596587000,250.89145897,0.0003,120]
[425213416,1781596587000,1168.31481599,0.00030137,120]
[425213417,1781596590000,294.30134465,0.0003,120]
[425213418,1781596605000,500.0,0.00030136,120]
[425213419,1781596623000,1732.0,9.073e-05,5]
[425213420,1781596630000,200.0,0.00030134,120]
[425213421,1781596631000,200.0,0.00030134,120]
[425213423,1781596632000,200.0,0.00030134,120]
[425213422,1781596632000,200.0,0.00030134,120]
[425213424,1781596639000,500.0,0.0003,120]
[425213426,1781596653000,203.27043993,0.00030135,120]
[425213425,1781596653000,2702.59109659,0.0003013,120]
[425213427,1781596655000,2901.23912638,0.0003,120]
[425213428,1781596655000,500.0,0.00030136,120]
[425213429,1781596656000,306.33052261,0.0003,120]
[425213430,1781596656000,1046.21975723,0.0003,120]
[425213431,1781596664000,1247.15852596,0.0003,120]
[425213432,1781596665000,964.35578258,0.0003013,120]
[425213435,1781596687000,306.229959,0.0003013,120]
[425213436,1781596689000,500.0,0.00030136,120]
[425213438,1781596830000,639.0,0.00030136,120]
[425213439,1781596831000,406.99962419,0.0003,120]
[425213440,1781596906000,969.41,0.00030082,120]
[425213441,1781597021000,-2953.966,8.165e-05,2]
[425213442,1781597023000,1160.72404779,0.0003011,120]
[425213443,1781597048000,-1322.274,8.165e-05,2]
[425213444,1781597067000,1098.04494921,0.0003011,120]
[425213451,1781597085000,-1407.82123639,8.498e-05,2]
[425213450,1781597085000,-165.66,8.434e-05,2]
[425213448,1781597085000,-240.32,8.294e-05,2]
[425213449,1781597085000,-150.0,8.329e-05,2]
[425213447,1781597085000,-163.02876361,8.294e-05,2]
[425213446,1781597085000,-2135.17,8.219e-05,2]
[425213445,1781597085000,-250.0,8.192e-05,2]
[425213452,1781597127000,1038.75052195,0.0003011,120]
[425213453,1781597157000,2908.0,0.00030137,120]
[425213454,1781597186000,896.6422758,0.0003011,120]
[425213456,1781597237000,1390.0,8.793e-05,5]
[425213457,1781597246000,493.15325169,0.0003011,120]
[425213458,1781597306000,271.23428843,0.0003011,120]
[425213461,1781597420000,500.0,0.00030137,120]
[425213464,1781597432000,-240.32,7.892e-05,2]
[425213465,1781597432000,-160.13,8.041e-05,2]
[425213467,1781597432000,-589.88494247,8.219e-05,2]
[425213469,1781597432000,-165.65,8.219e-05,2]
[425213468,1781597432000,-900.48505753,8.219e-05,2]
[425213470,1781597432000,-960.0,8.375e-05,2]
[425213471,1781597432000,-150.0,8.384e-05,2]
[425213472,1781597432000,-200.0,8.394e-05,2]
[425213473,1781597432000,-27.29346158,8.4e-05,2]
[425213466,1781597432000,-3645.91,8.041e-05,2]
[425213532,1781597440000,-160.0,8.041e-05,2]
[425213534,1781597440000,-1879.79132918,8.4e-05,2]
[425213536,1781597440000,-2033946.65033889,8.518e-05,2]
[425213763,1781597446000,-1953.09,8.518e-05,2]
[425213764,1781597446000,-1709.3981,8.518e-05,2]
[425213769,1781597476000,86957.20577783,0.00030137,120]
[425213770,1781597551000,-7600.21206432,8.178e-05,2]
[425213774,1781597553000,500.0,9.33e-05,7]
[425213773,1781597553000,500.0,9.33e-05,7]
[425213772,1781597553000,500.0,9.33e-05,7]
[425213771,1781597553000,500.0,9.33e-05,7]
[425213776,1781597554000,610.96148025,9.33e-05,7]
[425213775,1781597554000,500.0,9.33e-05,7]
[425213777,1781597577000,-1612.85416,8.178e-05,2]
[425213778,1781597600000,-500.6455,7.941e-05,2]
[425213779,1781597601000,501.26445399,0.00030137,120]
[425213784,1781597615000,-3502.72517432,8.518e-05,2]
[425213780,1781597615000,-5960.79,7.991e-05,2]
[425213782,1781597615000,-160.0,8.178e-05,2]
[425213783,1781597615000,-150.0,8.347e-05,2]
[425213781,1781597615000,-226.48482568,8.178e-05,2]
[425213785,1781597616000,-10000.0,8.518e-05,2]
[425213787,1781597617000,-10000.0,8.518e-05,2]
[425213786,1781597617000,-10000.0,8.518e-05,2]
[425213789,1781597618000,-10000.0,8.518e-05,2]
[425213788,1781597618000,-10000.0,8.518e-05,2]
[425213790,1781597619000,-10000.0,8.518e-05,2]
[425213791,1781597619000,-10000.0,8.518e-05,2]
[425213792,1781597620000,-10000.0,8.518e-05,2]
[425213793,1781597620000,-10000.0,8.518e-05,2]
[425213796,1781597621000,-10000.0,8.518e-05,2]
[425213795,1781597621000,-10000.0,8.518e-05,2]
[425213794,1781597621000,-10000.0,8.518e-05,2]
[425213797,1781597622000,-10000.0,8.518e-05,2]
[425213800,1781597625000,-10000.0,8.518e-05,2]
[425213799,1781597625000,-10000.0,8.518e-05,2]
[425213798,1781597625000,-10000.0,8.518e-05,2]
[425213801,1781597628000,-10000.0,8.518e-05,2]
[425213802,1781597629000,-10000.0,8.518e-05,2]
[425213803,1781597629000,-10000.0,8.518e-05,2]
[425213805,1781597630000,-10000.0,8.518e-05,2]
[425213804,1781597630000,-10000.0,8.518e-05,2]
[425213808,1781597631000,-10000.0,8.518e-05,2]
[425213807,1781597631000,-10000.0,8.518e-05,2]
[425213806,1781597631000,-10000.0,8.518e-05,2]
[425213810,1781597632000,-10000.0,8.518e-05,2]
[425213809,1781597632000,-10000.0,8.518e-05,2]
[425213811,1781597634000,-10000.0,8.518e-05,2]
[425213812,1781597634000,-10000.0,8.518e-05,2]
[425213814,1781597637000,-2500.0,8.518e-05,2]
[425213813,1781597637000,-2738.60538679,8.518e-05,2]
[425213815,1781597646000,358.999971,8.518e-05,2]
[425213816,1781597662000,1612.85416,8.178e-05,2]
[425213817,1781597668000,169.06,0.00030136,120]
[425213818,1781597673000,150.0,8.323e-05,2]
[425213819,1781597676000,2639.54048221,8.514e-05,2]
[425213820,1781597701000,-1679.67336639,8.514e-05,2]
[425213821,1781597701000,-281.02364512,8.579e-05,2]
[425213824,1781597701000,-7239.30298849,8.58e-05,2]
[425213822,1781597701000,-500.0,8.579e-05,2]
[425213823,1781597701000,-300.0,8.579e-05,2]
[425213825,1781597702000,-4423.51365851,8.58e-05,2]
[425213827,1781597702000,-5426.48634149,8.581e-05,2]
[425213826,1781597702000,-150.0,8.58e-05,2]
[425213828,1781597745000,167.2,6.685e-05,2]
[425213831,1781597846000,221.60354415,0.00030137,120]
[425213832,1781597849000,1107.0,8.82e-05,5]
[425213833,1781597870000,200.0,8.578e-05,7]
[425213834,1781597942000,-1472.23,7.829e-05,2]
[425213837,1781598017000,150.0,9.226e-05,7]
[425213838,1781598018000,10000.0,7.624e-05,2]
[425213839,1781598038000,249.98,0.00030136,120]
[425213840,1781598085000,-200.0,7.766e-05,2]
[425213841,1781598111000,53291.26,7.632e-05,2]
[425213842,1781598138000,-109.28,7.829e-05,2]
[425213843,1781598151000,1000.0,7.622e-05,2]
[425213844,1781598191000,-281.77376,7.829e-05,2]
[425213845,1781598192000,6382.26,7.618e-05,2]
[425213846,1781598196000,6992.16,7.605e-05,2]
[425213847,1781598197000,150.0,7.693e-05,2]
[425213848,1781598245000,-150.0,7.77e-05,2]
[425213849,1781598246000,1000.0,0.00030137,120]
[425213852,1781598247000,500.0,9.226e-05,7]
[425213851,1781598247000,500.0,9.226e-05,7]
[425213850,1781598247000,500.0,9.226e-05,7]
[425213853,1781598247000,581.68077888,9.226e-05,7]
[425213854,1781598276000,781.1,0.00030137,120]
[425213855,1781598298000,-150.0,7.846e-05,2]
[425213856,1781598351000,-150.0,7.867e-05,2]
[425213857,1781598405000,-186.47678224,7.944e-05,2]
[425213858,1781598409000,4342.68,7.684e-05,2]
[425213859,1781598458000,-278.83,7.73e-05,2]
[425213860,1781598471000,200.0,7.592e-05,2]
[425213861,1781598512000,-7600.21206432,7.799e-05,2]
[425213862,1781598540000,-771.93793568,7.771e-05,2]
[425213863,1781598549000,150.0,9.33e-05,7]
[425213864,1781598552000,500.0,9.33e-05,7]
[425213869,1781598552000,500.0,9.33e-05,7]
[425213865,1781598552000,156.75711103,9.33e-05,7]
[425213866,1781598552000,500.0,9.33e-05,7]
[425213867,1781598552000,500.0,9.33e-05,7]
[425213868,1781598552000,500.0,9.33e-05,7]
[425213871,1781598552000,204.15670494,9.33e-05,7]
[425213878,1781598552000,436.0,9.33e-05,7]
[425213872,1781598552000,436.0,9.33e-05,7]
[425213879,1781598552000,436.0,9.33e-05,7]
[425213877,1781598552000,436.0,9.33e-05,7]
[425213876,1781598552000,436.0,9.33e-05,7]
[425213870,1781598552000,436.0,9.33e-05,7]
[425213874,1781598552000,436.0,9.33e-05,7]
[425213873,1781598552000,436.0,9.33e-05,7]
[425213875,1781598552000,436.0,9.33e-05,7]
[425213883,1781598553000,436.0,9.33e-05,7]
[425213882,1781598553000,436.0,9.33e-05,7]
[425213880,1781598553000,436.0,9.33e-05,7]
[425213881,1781598553000,436.0,9.33e-05,7]
[425213887,1781598554000,436.0,9.33e-05,7]
[425213886,1781598554000,436.0,9.33e-05,7]
[425213885,1781598554000,436.0,9.33e-05,7]
[425213884,1781598554000,436.0,9.33e-05,7]
[425213889,1781598555000,436.0,9.33e-05,7]
[425213888,1781598555000,436.0,9.33e-05,7]
[425213890,1781598556000,436.0,9.33e-05,7]
[425213891,1781598558000,436.0,9.33e-05,7]
[425213892,1781598559000,436.0,9.33e-05,7]
[425213893,1781598561000,436.0,9.33e-05,7]
[425213894,1781598564000,452.98666459,9.33e-05,7]
[425213895,1781598576000,807.84,0.00030082,120]
[425213961,1781598633000,-400.0,7.771e-05,2]
[425213982,1781598640000,-272.18206432,7.771e-05,2]
[425213984,1781598640000,-216.13448155,7.799e-05,2]
[425213988,1781598640000,-255.69044952,7.942e-05,2]
[425213986,1781598640000,-150.0,7.849e-05,2]
[425213987,1781598640000,-500.0,7.942e-05,2]
[425213983,1781598640000,-771.93793568,7.799e-05,2]
[425213989,1781598640000,-617.41482822,7.942e-05,2]
[425213990,1781598640000,-2703.11695327,7.945e-05,2]
[425213985,1781598640000,-160.0,7.804e-05,2]
[425213995,1781598641000,-496.91109008,8.219e-05,2]
[425213991,1781598641000,-1955.82602668,7.945e-05,2]
[425213992,1781598641000,-3048.85333205,7.945e-05,2]
[425213993,1781598641000,-158.09,8.036e-05,2]
[425213994,1781598641000,-13074.650622,8.178e-05,2]
[425213996,1781598641000,-2135.17,8.219e-05,2]
[425213999,1781598641000,-160.0,8.403e-05,2]
[425213998,1781598641000,-1652.37,8.219e-05,2]
[425214001,1781598641000,-2365.6549381,8.516e-05,2]
[425214000,1781598641000,-150.0,8.515e-05,2]
[425214003,1781598641000,-1830.02600197,8.516e-05,2]
[425214002,1781598641000,-76533.82969172,8.516e-05,2]
[425213997,1781598641000,-164.94,8.219e-05,2]
[425214012,1781598643000,-597.37051811,8.516e-05,2]
[425214011,1781598643000,-6456.92388599,8.516e-05,2]
[425214010,1781598643000,-4824.36670845,8.516e-05,2]
[425214014,1781598645000,-693.99950253,8.516e-05,2]
[425214013,1781598645000,-3714.29813983,8.516e-05,2]
[425214020,1781598646000,-292.701,8.516e-05,2]
[425214022,1781598646000,-6546.12938439,8.516e-05,2]
[425214024,1781598646000,-500.0,8.572e-05,2]
[425214021,1781598646000,-2597.22065871,8.516e-05,2]
[425214026,1781598646000,-9956.27071299,8.581e-05,2]
[425214025,1781598646000,-250.0,8.579e-05,2]
[425214027,1781598646000,-450.25162133,8.581e-05,2]
[425214023,1781598646000,-250.0,8.548e-05,2]
[425214029,1781598659000,892.9623837,0.0003011,120]
[425214034,1781598719000,844.74241498,0.0003011,120]
[425214037,1781598777000,799.12632457,0.0003011,120]
[425214038,1781598809000,1046.963733,0.00027642,120]
[425214039,1781598837000,755.97350305,0.0003011,120]
[425214040,1781598891000,-464.18943021,8.359e-05,2]
[425214041,1781598897000,494.93239614,0.0003011,120]
[425214042,1781598957000,272.21281787,0.0003011,120]
[425214043,1781598968000,3219.2882,0.00030136,120]
[425214046,1781599054000,-2953.57,8.271e-05,2]
[425214047,1781599173000,500.0,9.226e-05,7]
[425214048,1781599173000,511.88715382,9.226e-05,7]
[425214049,1781599173000,500.0,9.226e-05,7]
[425214051,1781599173000,500.0,9.226e-05,7]
[425214052,1781599173000,168.44018383,9.226e-05,7]
[425214053,1781599173000,500.0,9.226e-05,7]
[425214050,1781599173000,150.0,9.226e-05,7]
[425214054,1781599173000,500.0,9.226e-05,7]
[425214061,1781599173000,513.82842119,9.226e-05,7]
[425214060,1781599173000,500.0,9.226e-05,7]